[Event "Titled Tuesday Blitz January 17 Early 2023"]
[White "Levine, David"]
[Black "Silva, Caio Henrique Angelico"]
[WhiteFideId "2011611"]
[BlackFideId "22777210"]
[WhiteElo "2040"]
[BlackElo "2129"]
[Result "0-1"]
[Round "03"]
[TimeControl "180+2"]
[Date "2023.01.17"]
[WhiteClock "0:00:01"]
[BlackClock "0:00:13"]

1. d4 {[%clk 0:03:00]}  Nf6 {[%clk 0:02:58]} 2. c4 {[%clk 0:03:00]}  g6 {[%clk 0:02:54]} 3. g3 {[%clk 0:03:00]}  Bg7 {[%clk 0:02:54]} 4. Bg2 {[%clk 0:03:00]}  O-O {[%clk 0:02:55]} 5. Nf3 {[%clk 0:03:00]}  d6 {[%clk 0:02:55]} 6. O-O {[%clk 0:02:59]}  c5 {[%clk 0:02:56]} 7. dxc5 {[%clk 0:02:58]}  dxc5 {[%clk 0:02:56]} 8. Ne5 {[%clk 0:02:58]}  Qb6 {[%clk 0:02:53]} 9. Nc3 {[%clk 0:02:52]}  Rd8 {[%clk 0:02:51]} 10. Qc2 {[%clk 0:02:49]}  Na6 {[%clk 0:02:45]} 11. a3 {[%clk 0:02:45]}  Bf5 {[%clk 0:02:33]} 12. e4 {[%clk 0:02:43]}  Be6 {[%clk 0:02:32]} 13. h3 {[%clk 0:02:32]}  Qc7 {[%clk 0:02:21]} 14. f4 {[%clk 0:02:21]}  Nd7 {[%clk 0:02:14]} 15. Nb5 {[%clk 0:02:03]}  Qb8 {[%clk 0:02:11]} 16. Nd3 {[%clk 0:02:01]}  Nc7 {[%clk 0:02:08]} 17. e5 {[%clk 0:01:51]}  Nxb5 {[%clk 0:01:50]} 18. cxb5 {[%clk 0:01:51]}  c4 {[%clk 0:01:48]} 19. Nf2 {[%clk 0:01:48]}  Nc5 {[%clk 0:01:48]} 20. Be3 {[%clk 0:01:32]}  Qc7 {[%clk 0:01:34]} 21. Rad1 {[%clk 0:01:28]}  Nb3 {[%clk 0:01:26]} 22. Ne4 {[%clk 0:01:13]}  Rac8 {[%clk 0:01:20]} 23. g4 {[%clk 0:01:07]}  Bd5 {[%clk 0:01:15]} 24. Nc3 {[%clk 0:01:01]}  Bxg2 {[%clk 0:01:14]} 25. Qxg2 {[%clk 0:01:01]}  e6 {[%clk 0:01:04]} 26. Ne4 {[%clk 0:00:55]}  b6 {[%clk 0:00:52]} 27. Nd6 {[%clk 0:00:55]}  Rb8 {[%clk 0:00:51]} 28. Qe4 {[%clk 0:00:47]}  c3 {[%clk 0:00:45]} 29. Rc1 {[%clk 0:00:40]}  Nxc1 {[%clk 0:00:43]} 30. Rxc1 {[%clk 0:00:39]}  Rxd6 {[%clk 0:00:23]} 31. exd6 {[%clk 0:00:38]}  Qxd6 {[%clk 0:00:23]} 32. Rxc3 {[%clk 0:00:38]}  Bxc3 {[%clk 0:00:22]} 33. bxc3 {[%clk 0:00:38]}  Qd5 {[%clk 0:00:22]} 34. Qc2 {[%clk 0:00:21]}  Qf3 {[%clk 0:00:17]} 35. Bd4 {[%clk 0:00:16]}  Qg3+ {[%clk 0:00:17]} 36. Qg2 {[%clk 0:00:12]}  Qxf4 {[%clk 0:00:17]} 37. Qc6 {[%clk 0:00:08]}  Qg3+ {[%clk 0:00:16]} 38. Kf1 {[%clk 0:00:08]}  Qxh3+ {[%clk 0:00:16]} 39. Ke1 {[%clk 0:00:07]}  Qh4+ {[%clk 0:00:16]} 40. Kd2 {[%clk 0:00:06]}  Qg5+ {[%clk 0:00:15]} 41. Kc2 {[%clk 0:00:02]}  Qxg4 {[%clk 0:00:15]} 42. Qd6 {[%clk 0:00:01]}  Qf5+ {[%clk 0:00:13]} 0-1


[Site "https://www.chess.com"]

[Event "Titled Tuesday Blitz January 17 Early 2023"]
[White "Quinones Garcia, Santiago"]
[Black "Tarnowska, Aleksandra"]
[WhiteFideId "4408497"]
[BlackFideId "1180967"]
[WhiteElo "2248"]
[BlackElo "1835"]
[Result "0-1"]
[Round "03"]
[TimeControl "180+2"]
[Date "2023.01.17"]
[WhiteClock "0:00:09"]
[BlackClock "0:00:05"]

1. d4 {[%clk 0:02:56]}  d5 {[%clk 0:02:59]} 2. c4 {[%clk 0:02:55]}  e6 {[%clk 0:03:00]} 3. Nc3 {[%clk 0:02:55]}  Nf6 {[%clk 0:03:00]} 4. Bg5 {[%clk 0:02:56]}  Be7 {[%clk 0:03:00]} 5. cxd5 {[%clk 0:02:56]}  exd5 {[%clk 0:03:00]} 6. e3 {[%clk 0:02:57]}  O-O {[%clk 0:03:01]} 7. Bd3 {[%clk 0:02:55]}  h6 {[%clk 0:03:01]} 8. Bh4 {[%clk 0:02:55]}  Nbd7 {[%clk 0:02:46]} 9. Nf3 {[%clk 0:02:53]}  c5 {[%clk 0:02:40]} 10. O-O {[%clk 0:02:51]}  b6 {[%clk 0:02:32]} 11. Bc2 {[%clk 0:02:31]}  Bb7 {[%clk 0:02:16]} 12. Qd3 {[%clk 0:02:28]}  Ne4 {[%clk 0:01:58]} 13. Bxe7 {[%clk 0:02:21]}  Qxe7 {[%clk 0:01:57]} 14. dxc5 {[%clk 0:02:15]}  Ndxc5 {[%clk 0:01:49]} 15. Qe2 {[%clk 0:02:05]}  Rac8 {[%clk 0:01:36]} 16. Rfd1 {[%clk 0:01:51]}  Nxc3 {[%clk 0:01:21]} 17. bxc3 {[%clk 0:01:47]}  Ne4 {[%clk 0:01:22]} 18. Rd4 {[%clk 0:01:17]}  Rxc3 {[%clk 0:01:11]} 19. Bb3 {[%clk 0:01:12]}  Rfc8 {[%clk 0:00:41]} 20. h3 {[%clk 0:01:10]}  Qd6 {[%clk 0:00:30]} 21. Rad1 {[%clk 0:00:59]}  Rc1 {[%clk 0:00:29]} 22. Qd3 {[%clk 0:00:58]}  Rxd1+ {[%clk 0:00:28]} 23. Qxd1 {[%clk 0:00:58]}  Nc3 {[%clk 0:00:28]} 24. Qd3 {[%clk 0:00:57]}  Qe6 {[%clk 0:00:20]} 25. Nd2 {[%clk 0:00:40]}  a5 {[%clk 0:00:11]} 26. e4 {[%clk 0:00:33]}  Nxe4 {[%clk 0:00:09]} 27. Nxe4 {[%clk 0:00:31]}  Rc1+ {[%clk 0:00:08]} 28. Kh2 {[%clk 0:00:30]}  dxe4 {[%clk 0:00:03]} 29. Qe3 {[%clk 0:00:21]}  Qe5+ {[%clk 0:00:03]} 30. g3 {[%clk 0:00:21]}  Rc8 {[%clk 0:00:02]} 31. Rd7 {[%clk 0:00:20]}  Bc6 {[%clk 0:00:02]} 32. Rxf7 {[%clk 0:00:20]}  Kh8 {[%clk 0:00:02]} 33. h4 {[%clk 0:00:11]}  Bd5 {[%clk 0:00:03]} 34. Bxd5 {[%clk 0:00:10]}  Qxd5 {[%clk 0:00:03]} 35. Qxb6 {[%clk 0:00:08]}  Qxf7 {[%clk 0:00:02]} 36. Qe3 {[%clk 0:00:07]}  Rf8 {[%clk 0:00:03]} 37. h5 {[%clk 0:00:08]}  Qf3 {[%clk 0:00:03]} 38. Qc5 {[%clk 0:00:07]}  Qxf2+ {[%clk 0:00:04]} 39. Qxf2 {[%clk 0:00:08]}  Rxf2+ {[%clk 0:00:05]} 40. Kg1 {[%clk 0:00:08]}  Rxa2 {[%clk 0:00:05]} 41. g4 {[%clk 0:00:09]}  e3 {[%clk 0:00:05]} 0-1


[Site "https://www.chess.com"]

[Event "Titled Tuesday Blitz January 17 Early 2023"]
[White "Larina, Maria"]
[Black "Wilson, Elvin"]
[WhiteFideId "24113182"]
[BlackFideId "2014874"]
[WhiteElo "1948"]
[BlackElo "2183"]
[Result "0-1"]
[Round "03"]
[TimeControl "180+2"]
[Date "2023.01.17"]
[WhiteClock "0:00:01"]
[BlackClock "0:00:09"]

1. e4 {[%clk 0:03:00]}  e6 {[%clk 0:02:59]} 2. d4 {[%clk 0:03:00]}  d5 {[%clk 0:03:00]} 3. Nc3 {[%clk 0:03:01]}  Bb4 {[%clk 0:02:59]} 4. exd5 {[%clk 0:03:01]}  exd5 {[%clk 0:02:59]} 5. Bd3 {[%clk 0:03:01]}  Nf6 {[%clk 0:02:58]} 6. Ne2 {[%clk 0:03:02]}  O-O {[%clk 0:02:49]} 7. O-O {[%clk 0:03:02]}  Re8 {[%clk 0:02:48]} 8. a3 {[%clk 0:03:02]}  Bf8 {[%clk 0:02:46]} 9. Ng3 {[%clk 0:02:52]}  Bg4 {[%clk 0:02:38]} 10. f3 {[%clk 0:02:52]}  Be6 {[%clk 0:02:38]} 11. Nce2 {[%clk 0:02:47]}  c5 {[%clk 0:02:33]} 12. Kh1 {[%clk 0:02:39]}  Nc6 {[%clk 0:02:32]} 13. Be3 {[%clk 0:02:20]}  c4 {[%clk 0:02:10]} 14. Bf5 {[%clk 0:02:20]}  g6 {[%clk 0:02:10]} 15. Bxe6 {[%clk 0:02:20]}  Rxe6 {[%clk 0:02:10]} 16. Qd2 {[%clk 0:02:13]}  Qd7 {[%clk 0:01:45]} 17. Bh6 {[%clk 0:02:05]}  Rae8 {[%clk 0:01:26]} 18. Bxf8 {[%clk 0:02:04]}  Kxf8 {[%clk 0:01:25]} 19. Nf4 {[%clk 0:01:59]}  Re3 {[%clk 0:01:18]} 20. Rfe1 {[%clk 0:01:19]}  Rxe1+ {[%clk 0:01:13]} 21. Rxe1 {[%clk 0:01:18]}  Rxe1+ {[%clk 0:01:14]} 22. Qxe1 {[%clk 0:01:18]}  Nxd4 {[%clk 0:01:14]} 23. Qe5 {[%clk 0:01:12]}  Nxc2 {[%clk 0:00:30]} 24. Qxf6 {[%clk 0:01:11]}  d4 {[%clk 0:00:27]} 25. Qh8+ {[%clk 0:01:09]}  Ke7 {[%clk 0:00:26]} 26. Qe5+ {[%clk 0:01:01]}  Kf8 {[%clk 0:00:26]} 27. Qc5+ {[%clk 0:01:01]}  Kg8 {[%clk 0:00:24]} 28. Qxc4 {[%clk 0:00:58]}  Ne3 {[%clk 0:00:23]} 29. Qd3 {[%clk 0:00:51]}  Qd6 {[%clk 0:00:21]} 30. Nfe2 {[%clk 0:00:50]}  Qc5 {[%clk 0:00:19]} 31. Qxd4 {[%clk 0:00:43]}  Qe7 {[%clk 0:00:17]} 32. h3 {[%clk 0:00:39]}  Nc2 {[%clk 0:00:16]} 33. Qd2 {[%clk 0:00:38]}  Qc7 {[%clk 0:00:14]} 34. Ne4 {[%clk 0:00:34]}  h5 {[%clk 0:00:14]} 35. Nf6+ {[%clk 0:00:30]}  Kg7 {[%clk 0:00:14]} 36. Nd5 {[%clk 0:00:30]}  Qc6 {[%clk 0:00:13]} 37. Qc3+ {[%clk 0:00:30]}  Qxc3 {[%clk 0:00:12]} 38. Ndxc3 {[%clk 0:00:31]}  Kf6 {[%clk 0:00:12]} 39. Kg1 {[%clk 0:00:30]}  Ke6 {[%clk 0:00:13]} 40. Kf2 {[%clk 0:00:30]}  Kd6 {[%clk 0:00:13]} 41. Ne4+ {[%clk 0:00:28]}  Kc6 {[%clk 0:00:13]} 42. N2c3 {[%clk 0:00:27]}  Nd4 {[%clk 0:00:12]} 43. Ke3 {[%clk 0:00:26]}  Ne6 {[%clk 0:00:12]} 44. g3 {[%clk 0:00:21]}  b6 {[%clk 0:00:11]} 45. h4 {[%clk 0:00:22]}  Ng7 {[%clk 0:00:10]} 46. Ng5 {[%clk 0:00:22]}  Nf5+ {[%clk 0:00:10]} 47. Kf4 {[%clk 0:00:22]}  f6 {[%clk 0:00:11]} 48. Ne6 {[%clk 0:00:20]}  Nd6 {[%clk 0:00:10]} 49. Ne4 {[%clk 0:00:19]}  Ne8 {[%clk 0:00:10]} 50. Nd4+ {[%clk 0:00:17]}  Kd5 {[%clk 0:00:10]} 51. Nb5 {[%clk 0:00:18]}  Kc4 {[%clk 0:00:10]} 52. Nbc3 {[%clk 0:00:13]}  Kb3 {[%clk 0:00:10]} 53. Nd1 {[%clk 0:00:12]}  Kc2 {[%clk 0:00:10]} 54. Nef2 {[%clk 0:00:11]}  Nd6 {[%clk 0:00:09]} 55. g4 {[%clk 0:00:11]}  b5 {[%clk 0:00:07]} 56. gxh5 {[%clk 0:00:11]}  gxh5 {[%clk 0:00:08]} 57. Ke3 {[%clk 0:00:11]}  a5 {[%clk 0:00:08]} 58. Kd4 {[%clk 0:00:11]}  a4 {[%clk 0:00:08]} 59. Kd5 {[%clk 0:00:11]}  Nf5 {[%clk 0:00:08]} 60. Ke6 {[%clk 0:00:09]}  Nxh4 {[%clk 0:00:09]} 61. Kxf6 {[%clk 0:00:09]}  Nxf3 {[%clk 0:00:09]} 62. Nc3 {[%clk 0:00:04]}  Kxb2 {[%clk 0:00:09]} 63. Nxb5 {[%clk 0:00:04]}  h4 {[%clk 0:00:09]} 64. Nh3 {[%clk 0:00:04]}  Nd2 {[%clk 0:00:08]} 65. Kg5 {[%clk 0:00:02]}  Nc4 {[%clk 0:00:08]} 66. Kf4 {[%clk 0:00:01]}  Nxa3 {[%clk 0:00:09]} 0-1


[Site "https://www.chess.com"]

[Event "Titled Tuesday Blitz January 17 Early 2023"]
[White "Levitan, Caleb Levi"]
[Black "Aung Thant Zin"]
[WhiteFideId "14332620"]
[BlackFideId "13000063"]
[WhiteElo "2129"]
[BlackElo "2268"]
[Result "0-1"]
[Round "03"]
[TimeControl "180+2"]
[Date "2023.01.17"]
[WhiteClock "0:00:06"]
[BlackClock "0:00:39"]

1. e4 {[%clk 0:03:00]}  c5 {[%clk 0:02:57]} 2. Nf3 {[%clk 0:03:00]}  Nc6 {[%clk 0:02:57]} 3. Nc3 {[%clk 0:02:58]}  d6 {[%clk 0:02:57]} 4. d4 {[%clk 0:02:53]}  cxd4 {[%clk 0:02:57]} 5. Nxd4 {[%clk 0:02:53]}  Nf6 {[%clk 0:02:58]} 6. Bc4 {[%clk 0:02:47]}  Qb6 {[%clk 0:02:58]} 7. Nb3 {[%clk 0:02:34]}  e6 {[%clk 0:02:57]} 8. Be3 {[%clk 0:02:34]}  Qc7 {[%clk 0:02:57]} 9. Be2 {[%clk 0:02:31]}  Be7 {[%clk 0:02:56]} 10. O-O {[%clk 0:02:27]}  a6 {[%clk 0:02:56]} 11. a4 {[%clk 0:02:25]}  b6 {[%clk 0:02:54]} 12. f4 {[%clk 0:02:23]}  O-O {[%clk 0:02:54]} 13. Qe1 {[%clk 0:02:11]}  Rb8 {[%clk 0:02:50]} 14. f5 {[%clk 0:02:06]}  Ne5 {[%clk 0:02:41]} 15. Qg3 {[%clk 0:01:57]}  Kh8 {[%clk 0:02:38]} 16. Nd4 {[%clk 0:01:39]}  Nc4 {[%clk 0:02:11]} 17. fxe6 {[%clk 0:01:10]}  Nxe3 {[%clk 0:01:49]} 18. Qxe3 {[%clk 0:01:03]}  Bxe6 {[%clk 0:01:41]} 19. Nxe6 {[%clk 0:01:00]}  fxe6 {[%clk 0:01:41]} 20. Kh1 {[%clk 0:00:40]}  d5 {[%clk 0:01:29]} 21. exd5 {[%clk 0:00:37]}  exd5 {[%clk 0:01:29]} 22. Bf3 {[%clk 0:00:18]}  Bc5 {[%clk 0:01:26]} 23. Qd3 {[%clk 0:00:18]}  d4 {[%clk 0:01:24]} 24. Ne4 {[%clk 0:00:15]}  Nxe4 {[%clk 0:01:17]} 25. Bxe4 {[%clk 0:00:15]}  h6 {[%clk 0:01:14]} 26. Qxa6 {[%clk 0:00:12]}  Qe5 {[%clk 0:01:08]} 27. Qd3 {[%clk 0:00:12]}  Bd6 {[%clk 0:01:07]} 28. g3 {[%clk 0:00:10]}  Rbe8 {[%clk 0:01:03]} 29. Rxf8+ {[%clk 0:00:08]}  Rxf8 {[%clk 0:01:03]} 30. Bg2 {[%clk 0:00:09]}  Rf2 {[%clk 0:00:56]} 31. Rf1 {[%clk 0:00:09]}  Qe2 {[%clk 0:00:46]} 32. Qxe2 {[%clk 0:00:07]}  Rxe2 {[%clk 0:00:45]} 33. Rf8+ {[%clk 0:00:05]}  Bxf8 {[%clk 0:00:45]} 34. Bf1 {[%clk 0:00:02]}  Rd2 {[%clk 0:00:45]} 35. Bd3 {[%clk 0:00:02]}  Bd6 {[%clk 0:00:44]} 36. b3 {[%clk 0:00:01]}  Rd1+ {[%clk 0:00:44]} 37. Kg2 {[%clk 0:00:01]}  Ra1 {[%clk 0:00:45]} 38. Kf3 {[%clk 0:00:02]}  Bb4 {[%clk 0:00:46]} 39. Ke4 {[%clk 0:00:02]}  Bc3 {[%clk 0:00:47]} 40. Kd5 {[%clk 0:00:02]}  Kg8 {[%clk 0:00:47]} 41. Kc6 {[%clk 0:00:03]}  Ba5 {[%clk 0:00:47]} 42. Kb5 {[%clk 0:00:03]}  Kf7 {[%clk 0:00:47]} 43. Bc4+ {[%clk 0:00:04]}  Kf6 {[%clk 0:00:47]} 44. b4 {[%clk 0:00:04]}  Bxb4 {[%clk 0:00:46]} 45. Kxb4 {[%clk 0:00:04]}  Rb1+ {[%clk 0:00:46]} 46. Bb3 {[%clk 0:00:05]}  Ke5 {[%clk 0:00:46]} 47. Kb5 {[%clk 0:00:05]}  d3 {[%clk 0:00:45]} 48. Kxb6 {[%clk 0:00:04]}  Rxb3+ {[%clk 0:00:44]} 49. cxb3 {[%clk 0:00:04]}  d2 {[%clk 0:00:45]} 50. a5 {[%clk 0:00:04]}  d1=Q {[%clk 0:00:45]} 51. a6 {[%clk 0:00:05]}  Qd5 {[%clk 0:00:44]} 52. Kc7 {[%clk 0:00:06]}  Qa8 {[%clk 0:00:44]} 53. Kb6 {[%clk 0:00:06]}  Kd5 {[%clk 0:00:43]} 54. a7 {[%clk 0:00:06]}  Qc6+ {[%clk 0:00:42]} 55. Ka5 {[%clk 0:00:06]}  Kc5 {[%clk 0:00:40]} 56. b4+ {[%clk 0:00:06]}  Kc4 {[%clk 0:00:40]} 57. a8=Q {[%clk 0:00:06]}  Qb5# {[%clk 0:00:39]} 0-1


[Site "https://www.chess.com"]

[Event "Titled Tuesday Blitz January 17 Early 2023"]
[White "Kaminski, Victor"]
[Black "Necula, Iulian"]
[WhiteFideId "1131630"]
[BlackFideId "1232380"]
[WhiteElo "2247"]
[BlackElo "1851"]
[Result "1-0"]
[Round "03"]
[TimeControl "180+2"]
[Date "2023.01.17"]
[WhiteClock "0:01:00"]
[BlackClock "0:00:31"]

1. e4 {[%clk 0:02:59]}  c5 {[%clk 0:02:59]} 2. Nf3 {[%clk 0:02:58]}  d6 {[%clk 0:03:00]} 3. Bb5+ {[%clk 0:02:57]}  Bd7 {[%clk 0:02:59]} 4. Bxd7+ {[%clk 0:02:57]}  Qxd7 {[%clk 0:02:59]} 5. c4 {[%clk 0:02:57]}  g6 {[%clk 0:02:58]} 6. d4 {[%clk 0:02:57]}  Bg7 {[%clk 0:02:54]} 7. Nc3 {[%clk 0:02:52]}  Nf6 {[%clk 0:02:53]} 8. O-O {[%clk 0:02:47]}  O-O {[%clk 0:02:52]} 9. Be3 {[%clk 0:02:46]}  cxd4 {[%clk 0:02:52]} 10. Bxd4 {[%clk 0:02:44]}  Nc6 {[%clk 0:02:52]} 11. Be3 {[%clk 0:02:41]}  a6 {[%clk 0:02:51]} 12. h3 {[%clk 0:02:40]}  Rac8 {[%clk 0:02:50]} 13. Rc1 {[%clk 0:02:28]}  Rfd8 {[%clk 0:02:42]} 14. b3 {[%clk 0:02:25]}  Ne8 {[%clk 0:02:36]} 15. Nd5 {[%clk 0:02:22]}  Rb8 {[%clk 0:02:26]} 16. Bb6 {[%clk 0:02:12]}  Rdc8 {[%clk 0:02:25]} 17. Qe2 {[%clk 0:02:11]}  e6 {[%clk 0:02:23]} 18. Ne3 {[%clk 0:02:02]}  Nf6 {[%clk 0:02:19]} 19. Nc2 {[%clk 0:01:52]}  d5 {[%clk 0:01:58]} 20. exd5 {[%clk 0:01:34]}  exd5 {[%clk 0:01:58]} 21. c5 {[%clk 0:01:34]}  Re8 {[%clk 0:01:55]} 22. Qd3 {[%clk 0:01:33]}  h6 {[%clk 0:01:05]} 23. Ncd4 {[%clk 0:01:24]}  Re4 {[%clk 0:00:55]} 24. Ne2 {[%clk 0:01:18]}  Rbe8 {[%clk 0:00:52]} 25. Ng3 {[%clk 0:01:16]}  Nb4 {[%clk 0:00:45]} 26. Qd2 {[%clk 0:01:06]}  R4e6 {[%clk 0:00:43]} 27. Rfd1 {[%clk 0:01:05]}  Qc6 {[%clk 0:00:38]} 28. Qxb4 {[%clk 0:01:05]}  Ne4 {[%clk 0:00:34]} 29. Nd4 {[%clk 0:01:01]}  Qd7 {[%clk 0:00:31]} 30. Nxe6 {[%clk 0:01:00]}  Rxe6 {[%clk 0:00:32]} 31. Nxe4 {[%clk 0:01:00]}  Rxe4 {[%clk 0:00:31]} 32. Qxe4 {[%clk 0:01:00]} 1-0


[Site "https://www.chess.com"]

[Event "Titled Tuesday Blitz January 17 Early 2023"]
[White "Kovalenko, Igor"]
[Black "Artemiev, Vladislav"]
[WhiteFideId "14117908"]
[BlackFideId "24101605"]
[WhiteElo "2674"]
[BlackElo "2701"]
[Result "0-1"]
[Round "04"]
[TimeControl "180+2"]
[Date "2023.01.17"]
[WhiteClock "0:00:39"]
[BlackClock "0:00:04"]

1. c4 {[%clk 0:03:00]}  e5 {[%clk 0:02:58]} 2. Nc3 {[%clk 0:02:59]}  Nf6 {[%clk 0:02:58]} 3. Nf3 {[%clk 0:02:59]}  Nc6 {[%clk 0:02:58]} 4. g3 {[%clk 0:02:59]}  g6 {[%clk 0:02:56]} 5. Bg2 {[%clk 0:02:59]}  Bg7 {[%clk 0:02:56]} 6. O-O {[%clk 0:02:59]}  O-O {[%clk 0:02:57]} 7. d3 {[%clk 0:03:00]}  d6 {[%clk 0:02:51]} 8. h3 {[%clk 0:02:59]}  Nd7 {[%clk 0:02:35]} 9. Rb1 {[%clk 0:02:57]}  Nc5 {[%clk 0:02:14]} 10. b4 {[%clk 0:02:56]}  Ne6 {[%clk 0:02:14]} 11. b5 {[%clk 0:02:50]}  Ne7 {[%clk 0:02:12]} 12. Ng5 {[%clk 0:02:46]}  h6 {[%clk 0:01:48]} 13. Nxe6 {[%clk 0:02:45]}  Bxe6 {[%clk 0:01:48]} 14. Kh2 {[%clk 0:02:45]}  Rb8 {[%clk 0:01:31]} 15. Nd5 {[%clk 0:02:43]}  f5 {[%clk 0:01:20]} 16. f4 {[%clk 0:02:36]}  Kh7 {[%clk 0:01:13]} 17. Qa4 {[%clk 0:02:31]}  Nxd5 {[%clk 0:01:05]} 18. cxd5 {[%clk 0:02:31]}  Bd7 {[%clk 0:01:06]} 19. Qc4 {[%clk 0:02:20]}  Qe7 {[%clk 0:01:06]} 20. e3 {[%clk 0:02:15]}  Rbc8 {[%clk 0:00:43]} 21. Bd2 {[%clk 0:02:13]}  h5 {[%clk 0:00:35]} 22. h4 {[%clk 0:02:10]}  exf4 {[%clk 0:00:30]} 23. exf4 {[%clk 0:02:11]}  Qe2 {[%clk 0:00:29]} 24. Bc3 {[%clk 0:02:05]}  Rf7 {[%clk 0:00:16]} 25. Rfe1 {[%clk 0:02:02]}  Qf2 {[%clk 0:00:15]} 26. Bxg7 {[%clk 0:01:50]}  Rxg7 {[%clk 0:00:16]} 27. d4 {[%clk 0:01:51]}  Qd2 {[%clk 0:00:06]} 28. Re2 {[%clk 0:01:49]}  Qa5 {[%clk 0:00:06]} 29. Qb4 {[%clk 0:01:10]}  Qxb4 {[%clk 0:00:06]} 30. Rxb4 {[%clk 0:01:11]}  Re8 {[%clk 0:00:06]} 31. Rc2 {[%clk 0:01:11]}  Bc8 {[%clk 0:00:04]} 32. Ra4 {[%clk 0:01:08]}  a6 {[%clk 0:00:05]} 33. bxa6 {[%clk 0:01:02]}  bxa6 {[%clk 0:00:06]} 34. Bf1 {[%clk 0:01:01]}  Re3 {[%clk 0:00:04]} 35. Rac4 {[%clk 0:00:56]}  Ree7 {[%clk 0:00:03]} 36. Rb4 {[%clk 0:00:54]}  Re3 {[%clk 0:00:02]} 37. Rb8 {[%clk 0:00:54]}  Bd7 {[%clk 0:00:03]} 38. Rxc7 {[%clk 0:00:54]}  Ba4 {[%clk 0:00:03]} 39. Rxg7+ {[%clk 0:00:50]}  Kxg7 {[%clk 0:00:03]} 40. Bxa6 {[%clk 0:00:47]}  Bc2 {[%clk 0:00:03]} 41. Rb6 {[%clk 0:00:44]}  Be4 {[%clk 0:00:03]} 42. Rxd6 {[%clk 0:00:44]}  Re1 {[%clk 0:00:04]} 43. g4 {[%clk 0:00:43]}  hxg4 {[%clk 0:00:04]} 44. Rd7+ {[%clk 0:00:42]}  Kh6 {[%clk 0:00:04]} 45. d6 {[%clk 0:00:39]}  Re3 {[%clk 0:00:04]} 0-1


[Site "https://www.chess.com"]

[Event "Titled Tuesday Blitz January 17 Early 2023"]
[White "Martinez Alcantara, Jose Eduardo"]
[Black "Shankland, Sam"]
[WhiteFideId "3805662"]
[BlackFideId "2004887"]
[WhiteElo "2619"]
[BlackElo "2711"]
[Result "1-0"]
[Round "04"]
[TimeControl "180+2"]
[Date "2023.01.17"]
[WhiteClock "0:00:32"]
[BlackClock "0:01:07"]

1. Nf3 {[%clk 0:03:00]}  d5 {[%clk 0:02:56]} 2. g3 {[%clk 0:03:01]}  g6 {[%clk 0:02:56]} 3. c4 {[%clk 0:03:01]}  dxc4 {[%clk 0:02:55]} 4. Na3 {[%clk 0:02:57]}  Bg7 {[%clk 0:02:55]} 5. Nxc4 {[%clk 0:02:57]}  Nc6 {[%clk 0:02:56]} 6. d3 {[%clk 0:02:56]}  e5 {[%clk 0:02:56]} 7. Be3 {[%clk 0:02:52]}  Nge7 {[%clk 0:02:55]} 8. Bg2 {[%clk 0:02:52]}  O-O {[%clk 0:02:49]} 9. O-O {[%clk 0:02:52]}  h6 {[%clk 0:02:49]} 10. Rc1 {[%clk 0:02:48]}  Be6 {[%clk 0:02:48]} 11. a3 {[%clk 0:02:44]}  a5 {[%clk 0:02:47]} 12. Qc2 {[%clk 0:02:39]}  a4 {[%clk 0:02:45]} 13. Bd2 {[%clk 0:02:37]}  Nf5 {[%clk 0:02:41]} 14. Bc3 {[%clk 0:02:36]}  Nfd4 {[%clk 0:02:31]} 15. Bxd4 {[%clk 0:02:30]}  exd4 {[%clk 0:02:31]} 16. Ncd2 {[%clk 0:02:29]}  Na5 {[%clk 0:02:29]} 17. Qxc7 {[%clk 0:02:26]}  Ra6 {[%clk 0:02:20]} 18. Qxd8 {[%clk 0:02:23]}  Rxd8 {[%clk 0:02:20]} 19. Rc5 {[%clk 0:02:15]}  Bf8 {[%clk 0:02:19]} 20. Rb5 {[%clk 0:02:14]}  Ra7 {[%clk 0:01:59]} 21. Rc1 {[%clk 0:02:08]}  Nc6 {[%clk 0:01:59]} 22. Nc4 {[%clk 0:02:01]}  h5 {[%clk 0:01:58]} 23. Ng5 {[%clk 0:01:42]}  Bd7 {[%clk 0:01:58]} 24. Ne4 {[%clk 0:01:42]}  Kg7 {[%clk 0:01:54]} 25. Nc5 {[%clk 0:01:39]}  Bc8 {[%clk 0:01:51]} 26. Nb6 {[%clk 0:01:34]}  Bg4 {[%clk 0:01:51]} 27. Nbxa4 {[%clk 0:01:23]}  Bxe2 {[%clk 0:01:34]} 28. Re1 {[%clk 0:01:22]}  Bxd3 {[%clk 0:01:30]} 29. Nxd3 {[%clk 0:01:21]}  Rxa4 {[%clk 0:01:30]} 30. Rxb7 {[%clk 0:01:19]}  Rc4 {[%clk 0:01:27]} 31. Bxc6 {[%clk 0:00:54]}  Rxc6 {[%clk 0:01:27]} 32. Rxf7+ {[%clk 0:00:54]}  Kg8 {[%clk 0:01:28]} 33. Rf4 {[%clk 0:00:48]}  Bh6 {[%clk 0:01:25]} 34. Rfe4 {[%clk 0:00:47]}  Rc2 {[%clk 0:01:25]} 35. R4e2 {[%clk 0:00:46]}  Rdc8 {[%clk 0:01:23]} 36. Kf1 {[%clk 0:00:46]}  Kf7 {[%clk 0:01:21]} 37. f4 {[%clk 0:00:45]}  Bg7 {[%clk 0:01:21]} 38. Kf2 {[%clk 0:00:45]}  Bf6 {[%clk 0:01:20]} 39. Kf3 {[%clk 0:00:46]}  R2c7 {[%clk 0:01:19]} 40. h4 {[%clk 0:00:45]}  Rb8 {[%clk 0:01:19]} 41. Rc1 {[%clk 0:00:37]}  Rxc1 {[%clk 0:01:12]} 42. Nxc1 {[%clk 0:00:38]}  Be7 {[%clk 0:01:07]} 43. Nd3 {[%clk 0:00:37]}  Rb3 {[%clk 0:01:06]} 44. Ke4 {[%clk 0:00:37]}  Bf6 {[%clk 0:01:07]} 45. Rc2 {[%clk 0:00:37]}  Ke7 {[%clk 0:01:07]} 46. Rc7+ {[%clk 0:00:35]}  Kf8 {[%clk 0:01:07]} 47. Rc6 {[%clk 0:00:34]}  Kf7 {[%clk 0:01:07]} 48. a4 {[%clk 0:00:32]} 1-0


[Site "https://www.chess.com"]